[Event "Bayerischer Schachbund IM 2024"]
[Site "Rosenheim"]
[Date "2024.08.12"]
[Round "1.6"]
[White "Hasenohr, Benedict"]
[Black "Schulz, Lukas"]
[Result "1/2-1/2"]
[Annotator "RC"]
[ECO "E71"]
[WhiteElo "2339"]
[BlackElo "2298"]
[PlyCount "184"]
[EventDate "2024.08.12"]
[EventType "tourn"]
[EventCountry "GER"]
[SourceTitle "playchess.com"]
[Source "ChessBase"]
[SourceQuality "1"]
[TimeControl "40/5400+30:1800+30"]

1. d4 {[%emt 0:00:04]} Nf6 {[%emt 0:00:08]} 2. c4 {[%emt 0:00:06]} g6 {[%emt 0:00:07]} 3. Nc3 {[%emt 0:00:06]} Bg7 {[%emt 0:00:06]} 4. e4 {[%emt 0:00:05]} d6 {[%emt 0:00:09]} 5. h3 {[%emt 0:00:07]} O-O {[%emt 0:00:49]} 6. Be3 {[%emt 0:00:08]} e5 {[%emt 0:03:38]} 7. d5 {[%emt 0:00:08]} Nbd7 {[%emt 0:01:57]} 8. g4 {[%emt 0:00:44]} Nc5 {[%emt 0:02:13]} 9. f3 {[%emt 0:00:07]} a5 {[%emt 0:01:56]} 10. Qd2 {[%emt 0:00:09]} Ne8 {[%emt 0:07:36]} 11. h4 {[%emt 0:04:12]} f5 {[%emt 0:02:25]} 12. g5 {[%emt 0:01:23]} Bd7 {[%emt 0:01:14]} 13. Qh2 {[%emt 0:13:42]} f4 {[%emt 0:14:53]} 14. Bf2 {[%emt 0:03:01]} c6 {[%emt 0:08:14]} 15. O-O-O {[%emt 0:02:57]} cxd5 {[%emt 0:15:38]} 16. Nxd5 {[%emt 0:03:55]} Rc8 {[%emt 0:03:14]} 17. Kb1 {[%emt 0:06:43]} a4 {[%emt 0:06:49]} 18. Ne2 {[%emt 0:05:57]} Nc7 {[%emt 0:10:49]} 19. Nb6 {[%emt 0:04:51]} N7e6 {[%emt 0:03:19]} 20. Nxc8 {[%emt 0:00:08]} Qxc8 {[%emt 0:04:49]} 21. Nc3 {[%emt 0:08:07]} Nd4 {[%emt 0:01:35]} 22. Nd5 {[%emt 0:00:44]} Qd8 {[%emt 0:00:41]} 23. Bxd4 {[%emt 0:00:47]} exd4 {[%emt 0:00:08]} 24. h5 {[%emt 0:00:38]} a3 {[%emt 0:04:47]} 25. hxg6 {[%emt 0:08:35]} hxg6 {[%emt 0:00:05]} 26. Qh7+ {[%emt 0:07:07]} Kf7 {[%emt 0:00:07]} 27. Rh4 {[%emt 0:00:13]} Qxg5 {[%emt 0:05:28]} 28. Rxf4+ {[%emt 0:00:13]} Ke8 {[%emt 0:00:05]} 29. Qxg7 {[%emt 0:12:13]} Rxf4 {[%emt 0:00:04]} 30. Nxf4 {[%emt 0:03:02]} Qxf4 {[%emt 0:00:06]} 31. Qxg6+ {[%emt 0:01:10]} Kd8 {[%emt 0:00:15]} 32. Qg2 {[%emt 0:02:33]} axb2 {[%emt 0:00:36]} 33. Qxb2 {[%emt 0:01:53]} Qxf3 {[%emt 0:00:59]} 34. Qxd4 {[%emt 0:00:54]} Nxe4 {[%emt 0:00:28]} 35. Ka1 {[%emt 0:00:42]} Kc8 {[%emt 0:01:17]} 36. Re1 {[%emt 0:02:11]} Nc5 {[%emt 0:00:19]} 37. Be2 {[%emt 0:01:55]} Qa3 {[%emt 0:00:25]} 38. Qb2 {[%emt 0:01:57]} Qg3 {[%emt 0:00:12]} 39. Rd1 {[%emt 0:00:31]} Kc7 {[%emt 0:00:24]} 40. Qd4 {[%emt 0:01:21]} Ne6 {[%emt 0:01:13]} 41. Qf6 {[%emt 0:31:16]} Ba4 {[%emt 0:07:11]} 42. Rb1 {[%emt 0:00:00]} Bc6 {[%emt 0:01:22]} 43. Rf1 {[%emt 0:00:00]} Qe3 {[%emt 0:02:39]} 44. Qb2 {[%emt 0:00:00]} Nd4 {[%emt 0:01:50]} 45. Bg4 {[%emt 0:00:00]} Be4 {[%emt 0:10:01]} 46. Rf7+ {[%emt 0:00:00]} Kb8 {[%emt 0:00:38]} 47. Rf8+ {[%emt 0:00:00]} Ka7 {[%emt 0:01:38]} 48. Bd1 {[%emt 0:00:00]} Qd3 {[%emt 0:00:19]} 49. Bb3 {[%emt 0:00:00]} Nc6 {[%emt 0:05:08]} 50. Rf7 {[%emt 0:00:00]} Ne5 {[%emt 0:02:25]} 51. Bc2 {[%emt 0:05:40]} Qe3 {[%emt 0:01:37]} 52. Re7 {[%emt 0:03:28]} Qg1+ {[%emt 0:01:37]} 53. Bb1 {[%emt 0:00:05]} Nxc4 {[%emt 0:00:29]} 54. Rg7 {[%emt 0:00:32]} Qe3 {[%emt 0:00:31]} 55. Rg3 {[%emt 0:01:05]} Qxg3 {[%emt 0:00:32]} 56. Qd4+ {[%emt 0:00:06]} Nb6 {[%emt 0:00:44]} 57. Bxe4 {[%emt 0:00:12]} Qe5 {[%emt 0:00:10]} 58. Qxe5 {[%emt 0:00:08]} dxe5 {[%emt 0:00:04]} 59. Kb2 {[%emt 0:00:19]} Na4+ {[%emt 0:00:43]} 60. Ka3 {[%emt 0:00:42]} Nc5 {[%emt 0:00:08]} 61. Bg2 {[%emt 0:00:35]} b5 {[%emt 0:00:23]} 62. Kb4 {[%emt 0:00:24]} Kb6 {[%emt 0:00:18]} 63. Bf1 {[%emt 0:00:06]} Na6+ {[%emt 0:00:37]} 64. Kb3 {[%emt 0:00:28]} Ka5 {[%emt 0:00:39]} 65. a3 {[%emt 0:00:23]} Nc5+ {[%emt 0:00:52]} 66. Kc3 {[%emt 0:00:10]} Ka4 {[%emt 0:00:47]} 67. Be2 {[%emt 0:00:12]} Ne4+ {[%emt 0:00:16]} 68. Kb2 {[%emt 0:00:15]} Ng3 {[%emt 0:00:36]} 69. Bd1+ {[%emt 0:00:13]} Ka5 {[%emt 0:00:04]} 70. Kc3 {[%emt 0:00:19]} Ne4+ {[%emt 0:00:11]} 71. Kc2 {[%emt 0:00:21]} Kb6 {[%emt 0:00:36]} 72. Kb3 {[%emt 0:00:22]} Kc5 {[%emt 0:00:34]} 73. Bc2 {[%emt 0:02:12]} Nd2+ {[%emt 0:00:22]} 74. Kc3 {[%emt 0:00:09]} Nc4 {[%emt 0:00:15]} 75. Kb3 {[%emt 0:00:38]} Ne3 {[%emt 0:00:49]} 76. Bd3 {[%emt 0:00:40]} Nd1 {[%emt 0:00:30]} 77. Be2 {[%emt 0:00:38]} Nf2 {[%emt 0:00:42]} 78. Kc3 {[%emt 0:00:24]} Ne4+ {[%emt 0:00:18]} 79. Kd3 {[%emt 0:00:46]} Nd6 {[%emt 0:01:01]} 80. Kc3 {[%emt 0:00:54]} Nc4 {[%emt 0:00:25]} 81. Kb3 {[%emt 0:00:33]} e4 {[%emt 0:00:49]} 82. Bg4 {[%emt 0:01:06]} Ne3 {[%emt 0:00:35]} 83. Be2 {[%emt 0:00:34]} Nd5 {[%emt 0:00:21]} 84. Kc2 {[%emt 0:00:05]} Nb6 {[%emt 0:00:40]} 85. Kc3 {[%emt 0:00:51]} Nc4 {[%emt 0:00:18]} 86. Kb3 {[%emt 0:00:08]} e3 {[%emt 0:00:27]} 87. Bh5 {[%emt 0:00:47]} Nb6 {[%emt 0:00:50]} 88. Kc3 {[%emt 0:00:18]} Nc4 {[%emt 0:00:05]} 89. Kb3 {[%emt 0:00:03]} Kd4 {[%emt 0:00:37]} 90. Kb4 {[%emt 0:00:07]} Nxa3 {[%emt 0:00:18]} 91. Kxa3 {[%emt 0:00:05]} Kc3 {[%emt 0:00:04]} 92. Ka2 {[%emt 0:00:18]} b4 {[%emt 0:00:12]} 1/2-1/2

[Event "Bayerischer Schachbund IM 2024"]
[Site "Rosenheim"]
[Date "2024.08.12"]
[Round "1.7"]
[White "Miller, Eduard"]
[Black "Reimann, Sebastian"]
[Result "1/2-1/2"]
[Annotator "RC"]
[ECO "A05"]
[WhiteElo "2319"]
[BlackElo "2327"]
[PlyCount "53"]
[EventDate "2024.08.12"]
[EventType "tourn"]
[EventCountry "GER"]
[SourceTitle "playchess.com"]
[Source "ChessBase"]
[SourceQuality "1"]
[TimeControl "40/5400+30:1800+30"]

1. Nf3 {[%emt 0:00:02]} Nf6 {[%emt 0:02:43]} 2. g3 {[%emt 0:00:06]} b5 {[%emt 0:09:57]} 3. Bg2 {[%emt 0:00:38]} Bb7 {[%emt 0:00:08]} 4. O-O {[%emt 0:00:08]} e6 {[%emt 0:00:42]} 5. d3 {[%emt 0:00:29]} d5 {[%emt 0:08:31]} 6. Nbd2 {[%emt 0:03:59]} Nbd7 {[%emt 0:01:00]} 7. Re1 {[%emt 0:20:06]} Bd6 {[%emt 0:19:23]} 8. a4 {[%emt 0:03:30]} bxa4 {[%emt 0:04:41]} 9. e4 {[%emt 0:02:45]} dxe4 {[%emt 0:00:20]} 10. Ng5 {[%emt 0:00:40]} Rb8 {[%emt 0:08:10]} 11. Ngxe4 {[%emt 0:01:07]} Nb6 {[%emt 0:02:33]} 12. Nxf6+ {[%emt 0:06:48]} Qxf6 {[%emt 0:00:11]} 13. Ne4 {[%emt 0:00:02]} Bxe4 {[%emt 0:03:02]} 14. Bxe4 {[%emt 0:05:10]} O-O {[%emt 0:02:24]} 15. Ra2 {[%emt 0:09:23]} h6 {[%emt 0:06:13]} 16. Qh5 {[%emt 0:05:15]} e5 {[%emt 0:05:00]} 17. Qg4 {[%emt 0:06:13]} Bc5 {[%emt 0:01:21]} 18. Be3 {[%emt 0:00:30]} Bxe3 {[%emt 0:00:22]} 19. Rxe3 {[%emt 0:02:21]} Rfe8 {[%emt 0:02:04]} 20. c4 {[%emt 0:08:40]} c5 {[%emt 0:00:18]} 21. Rf3 {[%emt 0:00:53]} Qg5 {[%emt 0:09:12]} 22. Qxg5 {[%emt 0:08:38]} hxg5 {[%emt 0:00:07]} 23. Re3 {[%emt 0:00:52]} Rbc8 {[%emt 0:03:27]} 24. Bb7 {[%emt 0:02:00]} Rc7 {[%emt 0:03:41]} 25. Ba6 {[%emt 0:00:14]} Rd8 {[%emt 0:02:40]} 26. Bb5 {[%emt 0:01:22]} f6 {[%emt 0:00:40]} 27. Kg2 {[%emt 0:07:42]} 1/2-1/2

[Event "Bayerischer Schachbund IM 2024"]
[Site "Rosenheim"]
[Date "2024.08.12"]
[Round "1.8"]
[White "Georgescu, Lena"]
[Black "Zysk, Robert"]
[Result "1/2-1/2"]
[Annotator "RC"]
[ECO "C13"]
[WhiteElo "2209"]
[BlackElo "2376"]
[PlyCount "72"]
[EventDate "2024.08.12"]
[EventType "tourn"]
[EventCountry "GER"]
[SourceTitle "playchess.com"]
[Source "ChessBase"]
[SourceQuality "1"]
[TimeControl "40/5400+30:1800+30"]

1. e4 {[%emt 0:00:07]} e6 {[%emt 0:00:02]} 2. d4 {[%emt 0:00:08]} d5 {[%emt 0:00:03]} 3. Nc3 {[%emt 0:00:05]} Nf6 {[%emt 0:00:05]} 4. Bg5 {[%emt 0:00:31]} dxe4 {[%emt 0:00:09]} 5. Nxe4 {[%emt 0:00:05]} Be7 {[%emt 0:00:15]} 6. Bxf6 {[%emt 0:00:48]} gxf6 {[%emt 0:00:09]} 7. Nf3 {[%emt 0:01:15]} f5 {[%emt 0:01:04]} 8. Nc3 {[%emt 0:00:19]} a6 {[%emt 0:00:47]} 9. g3 {[%emt 0:01:36]} b5 {[%emt 0:02:50]} 10. Bg2 {[%emt 0:00:44]} Bb7 {[%emt 0:00:10]} 11. O-O {[%emt 0:02:07]} b4 {[%emt 0:15:31]} 12. Ne2 {[%emt 0:01:32]} Nd7 {[%emt 0:01:11]} 13. Nf4 {[%emt 0:04:38]} Bd6 {[%emt 0:14:00]} 14. Ne1 {[%emt 0:30:48]} Bxg2 {[%emt 0:08:26]} 15. Nexg2 {[%emt 0:00:10]} c6 {[%emt 0:02:19]} 16. Qf3 {[%emt 0:02:44]} Rc8 {[%emt 0:00:49]} 17. Ne3 {[%emt 0:04:29]} Nb6 {[%emt 0:05:12]} 18. Rad1 {[%emt 0:10:00]} O-O {[%emt 0:03:16]} 19. Nd3 {[%emt 0:07:29]} Qf6 {[%emt 0:01:28]} 20. Rfe1 {[%emt 0:21:04]} Rfd8 {[%emt 0:04:54]} 21. Nc5 {[%emt 0:03:32]} Bxc5 {[%emt 0:12:51]} 22. dxc5 {[%emt 0:00:02]} Rxd1 {[%emt 0:00:19]} 23. Rxd1 {[%emt 0:03:34]} Na4 {[%emt 0:00:46]} 24. b3 {[%emt 0:01:25]} Nxc5 {[%emt 0:00:57]} 25. Nc4 {[%emt 0:01:28]} Ne4 {[%emt 0:04:25]} 26. Rd7 {[%emt 0:01:03]} Rd8 {[%emt 0:01:18]} 27. Qd3 {[%emt 0:00:50]} Rxd7 {[%emt 0:02:37]} 28. Qxd7 {[%emt 0:00:01]} c5 {[%emt 0:01:20]} 29. f3 {[%emt 0:00:53]} Ng5 {[%emt 0:09:20]} 30. Kg2 {[%emt 0:00:29]} h6 {[%emt 0:02:31]} 31. Qc8+ {[%emt 0:00:29]} Kh7 {[%emt 0:02:51]} 32. h4 {[%emt 0:00:39]} Qc3 {[%emt 0:00:25]} 33. hxg5 {[%emt 0:00:09]} Qxc2+ {[%emt 0:00:06]} 34. Kh3 {[%emt 0:01:05]} Qd1 {[%emt 0:01:06]} 35. Kg2 {[%emt 0:00:44]} Qe2+ {[%emt 0:00:32]} 36. Kg1 {[%emt 0:00:33]} Qe1+ {[%emt 0:00:14]} 1/2-1/2

[Event "Bayerischer Schachbund IM 2024"]
[Site "Rosenheim"]
[Date "2024.08.12"]
[Round "1.9"]
[White "Goldbeck, Lars"]
[Black "Platzgummer, Fabian"]
[Result "1-0"]
[Annotator "RC"]
[ECO "D45"]
[WhiteElo "2321"]
[BlackElo "2304"]
[PlyCount "107"]
[EventDate "2024.08.12"]
[EventType "tourn"]
[EventCountry "GER"]
[SourceTitle "playchess.com"]
[Source "ChessBase"]
[SourceQuality "1"]
[TimeControl "40/5400+30:1800+30"]

1. d4 {[%emt 0:00:04]} d5 {[%emt 0:00:27]} 2. c4 {[%emt 0:00:10]} c6 {[%emt 0:00:15]} 3. Nc3 {[%emt 0:00:21]} Nf6 {[%emt 0:00:29]} 4. e3 {[%emt 0:00:05]} e6 {[%emt 0:03:16]} 5. Nf3 {[%emt 0:00:55]} Nbd7 {[%emt 0:00:08]} 6. Be2 {[%emt 0:00:20]} Bd6 {[%emt 0:01:09]} 7. O-O {[%emt 0:01:33]} O-O {[%emt 0:00:07]} 8. Re1 {[%emt 0:02:49]} Re8 {[%emt 0:03:14]} 9. b3 {[%emt 0:06:40]} b6 {[%emt 0:16:45]} 10. Bb2 {[%emt 0:03:09]} Bb7 {[%emt 0:00:26]} 11. Bd3 {[%emt 0:01:57]} e5 {[%emt 0:06:18]} 12. cxd5 {[%emt 0:16:00]} cxd5 {[%emt 0:19:12]} 13. Nb5 {[%emt 0:10:08]} Bb8 {[%emt 0:02:11]} 14. dxe5 {[%emt 0:00:36]} Nxe5 {[%emt 0:00:14]} 15. Nxe5 {[%emt 0:02:34]} Bxe5 {[%emt 0:00:07]} 16. Bxe5 {[%emt 0:02:07]} Rxe5 {[%emt 0:00:07]} 17. Rc1 {[%emt 0:05:16]} a6 {[%emt 0:03:21]} 18. Nd4 {[%emt 0:00:41]} Rc8 {[%emt 0:00:57]} 19. Qe2 {[%emt 0:02:27]} a5 {[%emt 0:07:47]} 20. Qb2 {[%emt 0:10:52]} Qd6 {[%emt 0:06:39]} 21. Nf5 {[%emt 0:16:13]} Qe6 {[%emt 0:03:17]} 22. Nd4 {[%emt 0:00:11]} Qd6 {[%emt 0:00:12]} 23. h3 {[%emt 0:03:16]} Ree8 {[%emt 0:05:35]} 24. Nf5 {[%emt 0:03:45]} Qd7 {[%emt 0:06:33]} 25. b4 {[%emt 0:02:16]} a4 {[%emt 0:09:48]} 26. Qd4 {[%emt 0:01:55]} Re6 {[%emt 0:00:05]} 27. b5 {[%emt 0:02:28]} g6 {[%emt 0:00:30]} 28. Nh6+ {[%emt 0:00:41]} Kg7 {[%emt 0:01:28]} 29. Ng4 {[%emt 0:00:20]} a3 {[%emt 0:00:57]} 30. Nxf6 {[%emt 0:01:07]} Rxf6 {[%emt 0:00:01]} 31. e4 {[%emt 0:00:24]} Qe7 {[%emt 0:02:27]} 32. Rxc8 {[%emt 0:02:24]} Bxc8 {[%emt 0:00:02]} 33. e5 {[%emt 0:00:32]} Re6 {[%emt 0:00:13]} 34. Qxd5 {[%emt 0:00:59]} Bb7 {[%emt 0:01:58]} 35. Qd4 {[%emt 0:00:13]} Qg5 {[%emt 0:00:05]} 36. Bf1 {[%emt 0:00:56]} h5 {[%emt 0:01:21]} 37. Qe3 {[%emt 0:01:06]} Qxe3 {[%emt 0:00:48]} 38. Rxe3 {[%emt 0:00:02]} Bd5 {[%emt 0:00:21]} 39. f4 {[%emt 0:01:10]} f6 {[%emt 0:00:29]} 40. Rd3 {[%emt 0:01:08]} Bxa2 {[%emt 0:00:39]} 41. Rxa3 {[%emt 0:00:46]} Bd5 {[%emt 0:00:45]} 42. Rd3 {[%emt 0:07:31]} Ba2 {[%emt 0:02:58]} 43. exf6+ {[%emt 0:01:11]} Kxf6 {[%emt 0:00:39]} 44. g3 {[%emt 0:05:40]} g5 {[%emt 0:03:47]} 45. Rd4 {[%emt 0:01:41]} Bb1 {[%emt 0:06:51]} 46. Kf2 {[%emt 0:02:50]} Bf5 {[%emt 0:03:47]} 47. fxg5+ {[%emt 0:05:31]} Kxg5 {[%emt 0:00:06]} 48. h4+ {[%emt 0:00:25]} Kf6 {[%emt 0:01:02]} 49. Rf4 {[%emt 0:01:22]} Kg6 {[%emt 0:01:55]} 50. Rxf5 {[%emt 0:00:34]} Kxf5 {[%emt 0:00:01]} 51. Bh3+ {[%emt 0:00:06]} Ke5 {[%emt 0:00:05]} 52. Bxe6 {[%emt 0:00:04]} Kxe6 {[%emt 0:00:04]} 53. Kf3 {[%emt 0:00:41]} Kf5 {[%emt 0:00:02]} 54. g4+ {[%emt 0:00:05]} 1-0

[Event "Bayerischer Schachbund IM 2024"]
[Site "Rosenheim"]
[Date "2024.08.12"]
[Round "1.10"]
[White "Schneider, Jana"]
[Black "Lucas, Arthur"]
[Result "1/2-1/2"]
[Annotator "RC"]
[ECO "B60"]
[WhiteElo "2275"]
[BlackElo "2332"]
[PlyCount "128"]
[EventDate "2024.08.12"]
[EventType "tourn"]
[EventCountry "GER"]
[SourceTitle "playchess.com"]
[Source "ChessBase"]
[SourceQuality "1"]
[TimeControl "40/5400+30:1800+30"]

1. e4 {[%emt 0:00:08]} c5 {[%emt 0:00:10]} 2. Nf3 {[%emt 0:00:10]} d6 {[%emt 0:00:06]} 3. d4 {[%emt 0:00:55]} cxd4 {[%emt 0:00:07]} 4. Nxd4 {[%emt 0:00:06]} Nf6 {[%emt 0:00:05]} 5. Nc3 {[%emt 0:00:07]} Nc6 {[%emt 0:01:03]} 6. Bg5 {[%emt 0:02:05]} Bd7 {[%emt 0:00:16]} 7. Bb5 {[%emt 0:05:01]} Qb6 {[%emt 0:15:42]} 8. Be3 {[%emt 0:06:01]} Ng4 {[%emt 0:04:25]} 9. Nd5 {[%emt 0:08:24]} Nxe3 {[%emt 0:00:32]} 10. Nxb6 {[%emt 0:00:44]} Nxd1 {[%emt 0:00:08]} 11. Bxc6 {[%emt 0:06:42]} axb6 {[%emt 0:00:18]} 12. Bxd7+ {[%emt 0:01:02]} Kxd7 {[%emt 0:00:02]} 13. Kxd1 {[%emt 0:00:51]} g6 {[%emt 0:01:20]} 14. c3 {[%emt 0:02:49]} Bg7 {[%emt 0:01:14]} 15. Kd2 {[%emt 0:10:28]} Ra5 {[%emt 0:08:37]} 16. Rhe1 {[%emt 0:05:53]} Rc8 {[%emt 0:10:48]} 17. Kd3 {[%emt 0:05:10]} d5 {[%emt 0:07:38]} 18. e5 {[%emt 0:04:02]} f6 {[%emt 0:03:44]} 19. f4 {[%emt 0:11:12]} fxe5 {[%emt 0:01:27]} 20. fxe5 {[%emt 0:00:07]} Rf8 {[%emt 0:00:02]} 21. Re2 {[%emt 0:02:29]} e6 {[%emt 0:05:09]} 22. a4 {[%emt 0:04:29]} Rf4 {[%emt 0:00:57]} 23. b3 {[%emt 0:01:57]} Ra8 {[%emt 0:01:40]} 24. Raa2 {[%emt 0:03:56]} g5 {[%emt 0:00:54]} 25. b4 {[%emt 0:02:33]} h5 {[%emt 0:05:25]} 26. a5 {[%emt 0:01:05]} Ra6 {[%emt 0:07:38]} 27. Nb3 {[%emt 0:05:00]} Rf5 {[%emt 0:05:12]} 28. b5 {[%emt 0:00:46]} Rxa5 {[%emt 0:01:31]} 29. Nxa5 {[%emt 0:03:23]} bxa5 {[%emt 0:00:04]} 30. Rxa5 {[%emt 0:04:00]} Bxe5 {[%emt 0:00:05]} 31. Ra7 {[%emt 0:00:26]} Kc7 {[%emt 0:00:27]} 32. h3 {[%emt 0:00:53]} h4 {[%emt 0:07:52]} 33. Re1 {[%emt 0:00:52]} Kb6 {[%emt 0:01:41]} 34. Ra2 {[%emt 0:00:13]} Kc5 {[%emt 0:02:38]} 35. b6 {[%emt 0:00:45]} Kxb6 {[%emt 0:05:27]} 36. Rae2 {[%emt 0:00:05]} Bg3 {[%emt 0:01:18]} 37. Rxe6+ {[%emt 0:00:08]} Kc5 {[%emt 0:00:09]} 38. R1e2 {[%emt 0:01:14]} Rf1 {[%emt 0:00:22]} 39. Re8 {[%emt 0:02:47]} Rd1+ {[%emt 0:00:09]} 40. Kc2 {[%emt 0:00:32]} Rg1 {[%emt 0:00:30]} 41. Rc8+ {[%emt 0:08:21]} Kd6 {[%emt 0:01:42]} 42. Rb8 {[%emt 0:01:59]} Kc6 {[%emt 0:01:07]} 43. Rc8+ {[%emt 0:00:50]} Kd6 {[%emt 0:01:27]} 44. Kd3 {[%emt 0:09:42]} Bf4 {[%emt 0:02:11]} 45. Rb2 {[%emt 0:01:29]} Re1 {[%emt 0:02:31]} 46. Re2 {[%emt 0:02:28]} Rd1+ {[%emt 0:02:34]} 47. Kc2 {[%emt 0:00:03]} Rg1 {[%emt 0:00:06]} 48. Ra8 {[%emt 0:01:24]} Kc5 {[%emt 0:00:37]} 49. Kb3 {[%emt 0:01:35]} Rb1+ {[%emt 0:04:13]} 50. Rb2 {[%emt 0:00:27]} Re1 {[%emt 0:02:23]} 51. Rc8+ {[%emt 0:00:41]} Kd6 {[%emt 0:00:22]} 52. Ka4 {[%emt 0:04:46]} Ra1+ {[%emt 0:02:35]} 53. Kb3 {[%emt 0:02:04]} Kd7 {[%emt 0:02:06]} 54. Rc5 {[%emt 0:00:41]} Kd6 {[%emt 0:00:10]} 55. Rc8 {[%emt 0:00:56]} Kd7 {[%emt 0:01:07]} 56. Rc5 {[%emt 0:00:02]} Rd1 {[%emt 0:03:26]} 57. Kc2 {[%emt 0:01:25]} Rg1 {[%emt 0:02:27]} 58. Kd3 {[%emt 0:00:21]} Kd6 {[%emt 0:00:20]} 59. Rcb5 {[%emt 0:00:20]} Rd1+ {[%emt 0:02:43]} 60. Ke2 {[%emt 0:00:12]} Rc1 {[%emt 0:00:07]} 61. Kd3 {[%emt 0:00:09]} Rd1+ {[%emt 0:02:37]} 62. Ke2 {[%emt 0:00:20]} Rc1 {[%emt 0:00:05]} 63. Kd3 {[%emt 0:01:36]} Rd1+ {[%emt 0:00:57]} 64. Ke2 {[%emt 0:00:02]} Rc1 {[%emt 0:00:26]} 1/2-1/2

[Event "Bayerischer Schachbund IM 2024"]
[Site "Rosenheim"]
[Date "2024.08.13"]
[Round "2.6"]
[White "Schulz, Lukas"]
[Black "Lucas, Arthur"]
[Result "0-1"]
[Annotator "RC"]
[ECO "C31"]
[WhiteElo "2298"]
[BlackElo "2332"]
[PlyCount "38"]
[EventDate "2024.08.12"]
[EventType "tourn"]
[EventCountry "GER"]
[SourceTitle "playchess.com"]
[Source "ChessBase"]
[SourceQuality "1"]
[TimeControl "40/5400+30:1800+30"]

1. e4 {[%emt 0:00:03]} e5 {[%emt 0:00:09]} 2. f4 {[%emt 0:00:11]} d5 {[%emt 0:00:12]} 3. exd5 {[%emt 0:00:44]} c6 {[%emt 0:00:06]} 4. Be2 {[%emt 0:10:57]} exf4 {[%emt 0:01:44]} 5. dxc6 {[%emt 0:05:38]} Nxc6 {[%emt 0:02:45]} 6. Nf3 {[%emt 0:00:12]} g5 {[%emt 0:05:15]} 7. O-O {[%emt 0:05:45]} g4 {[%emt 0:17:23]} 8. Ne1 {[%emt 0:04:24]} f5 {[%emt 0:07:12]} 9. c3 {[%emt 0:11:03]} Bd6 {[%emt 0:02:58]} 10. d4 {[%emt 0:00:25]} f3 {[%emt 0:16:48]} 11. Nxf3 {[%emt 0:19:54]} gxf3 {[%emt 0:00:46]} 12. Bxf3 {[%emt 0:00:05]} Nge7 {[%emt 0:03:47]} 13. Bh6 {[%emt 0:20:13]} Bxh2+ {[%emt 0:04:06]} 14. Kh1 {[%emt 0:08:13]} Bg3 {[%emt 0:07:49]} 15. Qd2 {[%emt 0:05:52]} Ng6 {[%emt 0:05:57]} 16. Bg5 {[%emt 0:00:07]} Qd6 {[%emt 0:01:08]} 17. Bh6 {[%emt 0:01:30]} f4 {[%emt 0:02:19]} 18. Bxc6+ {[%emt 0:03:27]} bxc6 {[%emt 0:00:41]} 19. Qe2+ {[%emt 0:00:17]} Ne7 {[%emt 0:05:04]} 0-1

[Event "Bayerischer Schachbund IM 2024"]
[Site "Rosenheim"]
[Date "2024.08.13"]
[Round "2.7"]
[White "Platzgummer, Fabian"]
[Black "Schneider, Jana"]
[Result "1/2-1/2"]
[Annotator "RC"]
[ECO "A13"]
[WhiteElo "2304"]
[BlackElo "2275"]
[PlyCount "46"]
[EventDate "2024.08.12"]
[EventType "tourn"]
[EventCountry "GER"]
[SourceTitle "playchess.com"]
[Source "ChessBase"]
[SourceQuality "1"]
[TimeControl "40/5400+30:1800+30"]

1. Nf3 {[%emt 0:00:03]} d5 {[%emt 0:00:11]} 2. e3 {[%emt 0:00:38]} Nf6 {[%emt 0:00:29]} 3. c4 {[%emt 0:00:16]} e6 {[%emt 0:00:16]} 4. b3 {[%emt 0:00:16]} Be7 {[%emt 0:02:35]} 5. Bb2 {[%emt 0:00:12]} O-O {[%emt 0:00:43]} 6. Be2 {[%emt 0:01:37]} b6 {[%emt 0:01:23]} 7. O-O {[%emt 0:00:59]} c5 {[%emt 0:01:25]} 8. Nc3 {[%emt 0:03:48]} Ba6 {[%emt 0:04:20]} 9. cxd5 {[%emt 0:14:54]} Bxe2 {[%emt 0:06:13]} 10. Qxe2 {[%emt 0:00:14]} Nxd5 {[%emt 0:01:22]} 11. Nxd5 {[%emt 0:02:41]} Qxd5 {[%emt 0:00:58]} 12. Rfd1 {[%emt 0:00:24]} Nc6 {[%emt 0:05:29]} 13. d4 {[%emt 0:01:16]} cxd4 {[%emt 0:11:28]} 14. Nxd4 {[%emt 0:01:10]} Rfd8 {[%emt 0:01:14]} 15. Nxc6 {[%emt 0:27:19]} Qxc6 {[%emt 0:00:10]} 16. Qg4 {[%emt 0:00:12]} Bf8 {[%emt 0:07:00]} 17. Rac1 {[%emt 0:06:47]} Rxd1+ {[%emt 0:00:55]} 18. Qxd1 {[%emt 0:01:02]} Qd6 {[%emt 0:00:41]} 19. Qxd6 {[%emt 0:04:05]} Bxd6 {[%emt 0:00:09]} 20. Rd1 {[%emt 0:00:06]} Rd8 {[%emt 0:02:48]} 21. Kf1 {[%emt 0:01:42]} f6 {[%emt 0:02:16]} 22. e4 {[%emt 0:04:04]} e5 {[%emt 0:04:27]} 23. Ba3 {[%emt 0:07:03]} Be7 {[%emt 0:03:17]} 1/2-1/2

[Event "Bayerischer Schachbund IM 2024"]
[Site "Rosenheim"]
[Date "2024.08.13"]
[Round "2.8"]
[White "Zysk, Robert"]
[Black "Goldbeck, Lars"]
[Result "1/2-1/2"]
[Annotator "RC"]
[ECO "D02"]
[WhiteElo "2376"]
[BlackElo "2321"]
[PlyCount "39"]
[EventDate "2024.08.12"]
[EventType "tourn"]
[EventCountry "GER"]
[SourceTitle "playchess.com"]
[Source "ChessBase"]
[SourceQuality "1"]
[TimeControl "40/5400+30:1800+30"]

1. Nf3 {[%emt 1:31:00]} d5 {[%emt 0:00:08]} 2. g3 {[%emt 0:00:00]} Nd7 {[%emt 0:00:05]} 3. d4 {[%emt 0:00:00]} Nb6 {[%emt 0:00:09]} 4. Nbd2 {[%emt 0:00:00]} Bf5 {[%emt 0:00:38]} 5. Bg2 {[%emt 0:00:00]} e6 {[%emt 0:00:39]} 6. b3 {[%emt 0:00:00]} Be7 {[%emt 0:03:50]} 7. Bb2 {[%emt 0:00:00]} h6 {[%emt 0:01:07]} 8. O-O {[%emt 0:00:00]} Nf6 {[%emt 0:00:04]} 9. c4 {[%emt 0:00:00]} c6 {[%emt 0:02:37]} 10. Qc1 {[%emt 0:00:00]} O-O {[%emt 0:06:33]} 11. Ba3 {[%emt 0:00:00]} Ne4 {[%emt 0:07:21]} 12. Bxe7 {[%emt 0:00:00]} Qxe7 {[%emt 0:00:02]} 13. Rd1 {[%emt 0:00:00]} Bh7 {[%emt 0:03:46]} 14. Qb2 {[%emt 0:00:00]} Nxd2 {[%emt 0:26:35]} 15. Nxd2 {[%emt 0:00:00]} Rfd8 {[%emt 0:04:14]} 16. Rac1 {[%emt 0:07:30]} a5 {[%emt 0:01:24]} 17. e4 {[%emt 0:00:00]} dxe4 {[%emt 0:01:31]} 18. Bxe4 {[%emt 0:00:00]} Bxe4 {[%emt 0:04:14]} 19. Nxe4 {[%emt 0:00:00]} Nd7 {[%emt 0:00:32]} 20. Re1 {[%emt 0:00:00]} 1/2-1/2